{"text_format":"3","workbook":"xlsx","n_sheets":16,"sheets":["ХИМИЯ","Ист-Татарстана","ТАТ.ЯЗ. (рус)","Обществознание","Геология","Искусство","Физика","География","Физкультура","Экономика","Экология","Родная литература","История","Литература","ТАТ.ЯЗ.","АНГ.ЯЗ."],"not_rendered":{"defined_names":16},"read":"whole","date_system":"1900"}

{"sheet":"ХИМИЯ","index":0,"n_rows":19,"n_cols":12,"rows_kept":19,"merged":[[1,0,1,8],[8,2,8,3]]}
[]
["Предварительный протокол по итогам муниципального этапа ВсОШ/РОШ  \nМБОУ \"Арская СОШ №6\" в 2019-2020 учебном году"]
[]
[null,"Этап олимпиады:",null,"Муниципальный",{"$nulls":3},"ПОБЕДИТЕЛИ",{"$f":"IF(H10=\"Победитель\",\"1\",)","v":"1"}]
[null,"Класс:",{"$nulls":5},"ПРИЗЕРЫ",{"$f":"IF(H11=\"Призер\",\"1\",)","v":"1"}]
[null,"Дата проведения:"]
[null,"Место проведения:"]
[]
["№","Предмет","ФИ ученика",null,"Класс","Набранный балл","Максимальный балл","Статус (Победитель, Призер, Участник)","ФИО педагога, подготовившего участника олимпиады"]
[1,"Химия","Сафия","Зульфатовна",8,30,50,"Победитель","Петрова Эвелина Игоревна",null,{"$f":"IF(H10=\"ПРИЗЁР\",1,0)","v":0},{"$f":"IF(H10=\"ПОБЕДИТЕЛЬ\",1,0)","v":1}]
[2,"Химия","Амир ","Ленарович",8,25,50,"Призер","Сабирова Аделина Рамилевна",null,{"$f":"IF(H11=\"ПРИЗЁР\",1,0)","v":0},{"$f":"IF(H11=\"ПОБЕДИТЕЛЬ\",1,0)","v":0}]
[3,"Химия","Ляйсан ","Ленаровна",8,14.5,50,"Участник","Сабирова Аделина Рамилевна"]
[4,"Химия","Данил ","Айтуганович",8,8,50,"Участник","Сабирова Аделина Рамилевна"]
[5,"Химия","Альфия ","Фанилевна",9,9.1,50,"Участник","Сабирова Аделина Рамилевна"]
[6,"Химия","Камиля ","Айратовна",9,20.7,50,"Участник","Сабирова Аделина Рамилевна"]
[7,"Химия","Алия","Алмазовна",9,10.65,50,"Участник","Петрова Эвелина Игоревна"]
[8,"Химия","Алина","Халилевна",9,22.95,50,"Участник","Петрова Эвелина Игоревна"]
[9,"Химия","Рамис ","Радисович",10,15,50,"Участник","Сабирова Аделина Рамилевна"]
[10,"Химия","Камиля ","Данисовна",11,18.5,50,"Участник","Сабирова Аделина Рамилевна"]

{"sheet":"Ист-Татарстана","index":1,"n_rows":37,"n_cols":12,"rows_kept":37,"merged":[[1,0,1,8],[8,2,8,3]]}
[]
["Предварительный протокол по итогам муниципального этапа ВсОШ/РОШ  \nМБОУ \"Арская СОШ №6\" в 2019-2020 учебном году"]
[]
[null,"Этап олимпиады:",{"$nulls":5},"ПОБЕДИТЕЛИ",0]
[null,"Класс:",{"$nulls":5},"ПРИЗЕРЫ",3]
[null,"Дата проведения:"]
[null,"Место проведения:"]
[]
["№","Предмет","ФИ ученика",null,"Класс","Набранный балл","Максимальный балл","Статус (Победитель, Призер, Участник)","ФИО педагога, подготовившего участника олимпиады"]
[1,"Ист-Татарстана","Сиразиев","Данил","8А",9,120,"Участник","Сергиев Д.Ю.",null,{"$f":"IF(H10=\"ПРИЗЁР\",1,0)","v":0},{"$f":"IF(H10=\"ПОБЕДИТЕЛЬ\",1,0)","v":0}]
[2,"Ист-Татарстана","Хисамиева ","Камилла","8Б",86,120,"призер","Сергиев Д.Ю.",null,{"$f":"IF(H11=\"ПРИЗЁР\",1,0)","v":0},{"$f":"IF(H11=\"ПОБЕДИТЕЛЬ\",1,0)","v":0}]
[3,"Ист-Татарстана","Мазитова ","Ильсия","9В",91,140,"призер","Сергиев Д.Ю.",null,0,0]
[4,"Ист-Татарстана","Нигматзянова ","Камиля","9Б",35,140,"участник","Сафарова Г.В.",null,0,0]
[5,"Ист-Татарстана","Мухутдинова ","Альфия","9А",33,140,"участник","Сафарова Г.В.",null,0,0]
[6,"Ист-Татарстана","Мухаметзянов","Расих","9А",18,140,"участник","Сафарова Г.В.",null,0,0]
[7,"Ист-Татарстана","Мухутдинова ","Язиля","10А",92,125,"призер","Сафарова Г.В.",null,0,0]
[8,"Ист-Татарстана","Ахмадиева ","Диляра","11А",57,125,"участник","Сафарова Г.В.",null,0,0]
[{"$nulls":10},0,0]
[{"$nulls":10},0,0]
[{"$nulls":10},0,0]
[{"$nulls":10},0,0]
[{"$nulls":10},0,0]
[{"$nulls":10},0,0]
[{"$nulls":10},0,0]
[{"$nulls":10},0,0]
[{"$nulls":10},{"$f":"IF(H26=\"ПРИЗЁР\",1,0)","v":0},{"$f":"IF(H26=\"ПОБЕДИТЕЛЬ\",1,0)","v":0}]
[{"$nulls":10},{"$f":"IF(H27=\"ПРИЗЁР\",1,0)","v":0},{"$f":"IF(H27=\"ПОБЕДИТЕЛЬ\",1,0)","v":0}]
[{"$nulls":10},{"$f":"IF(H28=\"ПРИЗЁР\",1,0)","v":0},{"$f":"IF(H28=\"ПОБЕДИТЕЛЬ\",1,0)","v":0}]
[{"$nulls":10},{"$f":"IF(H29=\"ПРИЗЁР\",1,0)","v":0},{"$f":"IF(H29=\"ПОБЕДИТЕЛЬ\",1,0)","v":0}]
[{"$nulls":10},{"$f":"IF(H30=\"ПРИЗЁР\",1,0)","v":0},{"$f":"IF(H30=\"ПОБЕДИТЕЛЬ\",1,0)","v":0}]
[{"$nulls":10},{"$f":"IF(H31=\"ПРИЗЁР\",1,0)","v":0},{"$f":"IF(H31=\"ПОБЕДИТЕЛЬ\",1,0)","v":0}]
[{"$nulls":10},{"$f":"IF(H32=\"ПРИЗЁР\",1,0)","v":0},{"$f":"IF(H32=\"ПОБЕДИТЕЛЬ\",1,0)","v":0}]
[{"$nulls":10},{"$f":"IF(H33=\"ПРИЗЁР\",1,0)","v":0},{"$f":"IF(H33=\"ПОБЕДИТЕЛЬ\",1,0)","v":0}]
[{"$nulls":10},{"$f":"IF(H34=\"ПРИЗЁР\",1,0)","v":0},{"$f":"IF(H34=\"ПОБЕДИТЕЛЬ\",1,0)","v":0}]
[{"$nulls":10},{"$f":"IF(H35=\"ПРИЗЁР\",1,0)","v":0},{"$f":"IF(H35=\"ПОБЕДИТЕЛЬ\",1,0)","v":0}]
[{"$nulls":10},{"$f":"IF(H36=\"ПРИЗЁР\",1,0)","v":0},{"$f":"IF(H36=\"ПОБЕДИТЕЛЬ\",1,0)","v":0}]
[{"$nulls":10},{"$f":"IF(H37=\"ПРИЗЁР\",1,0)","v":0},{"$f":"IF(H37=\"ПОБЕДИТЕЛЬ\",1,0)","v":0}]

{"sheet":"ТАТ.ЯЗ. (рус)","index":2,"n_rows":37,"n_cols":12,"rows_kept":37,"merged":[[1,0,1,8],[8,2,8,3]]}
[]
["Предварительный протокол по итогам муниципального этапа ВсОШ/РОШ  \nМБОУ \"Арская СОШ №6\" в 2019-2020 учебном году"]
[]
[null,"Этап олимпиады:",{"$nulls":5},"ПОБЕДИТЕЛИ",4]
[null,"Класс:",{"$nulls":5},"ПРИЗЕРЫ",5]
[null,"Дата проведения:"]
[null,"Место проведения:"]
[]
["№","Предмет","ФИ ученика",null,"Класс","Набранный балл","Максимальный балл","Статус (Победитель, Призер, Участник)","ФИО педагога, подготовившего участника олимпиады"]
[1,"Татарский язык(рус)","Азалия","Калачова",8,74,78,"      Победитель","Юсупова Гульназ Фагаловна",null,{"$f":"IF(H10=\"ПРИЗЁР\",1,0)","v":0},{"$f":"IF(H10=\"ПОБЕДИТЕЛЬ\",1,0)","v":0}]
[2,"Татарский язык(рус)","Камиля","Чигашова",8,75,78,"      Победитель","Юсупова Гульназ Фагаловна",null,{"$f":"IF(H11=\"ПРИЗЁР\",1,0)","v":0},{"$f":"IF(H11=\"ПОБЕДИТЕЛЬ\",1,0)","v":0}]
[3,"Татарский язык(рус)","Ангелина","Яковлева",9,83,86,"      Победитель","Юсупова Гульназ Фагаловна",null,0,0]
[4,"Татарский язык(рус)","Виктория","Осина",6,51,54,"Победитель","Хуснутдинова Алсу Мухамматдиновна",null,0,1]
[5,"Татарский язык(рус)","Азалия ","Комарова ",4,66,75,"Призер","Зарипова Лейля Рафкатовна",null,0,0]
[6,"Татарский язык(рус)","Артем ","Иванов ",4,66,75,"Призер","Зарипова Лейля Рафкатовна",null,0,0]
[7,"Татарский язык(рус)","Тимур","Коркин",5,49,70,"Призер","Шаймуллина Миляуша Мидхатовна",null,0,0]
[8,"Татарский язык(рус)","Регина","Синичкина ",6,49,54,"Призер","Хуснутдинова Алсу Мухамматдиновна",null,0,0]
[9,"Татарский язык(рус)","Никита","Байкиев ",7,54,58,"Призер","Хуснутдинова Алсу Мухамматдиновна",null,0,0]
[10,"Татарский язык(рус)","Руслан","Лаврентьев",5,40,70,"Участник","Шаймуллина Миляуша Мидхатовна",null,0,0]
[11,"Татарский язык(рус)","Амира ","Алдушина ",4,50.1,75,"Участник","Зарипова Лейля Рафкатовна ",null,0,0]
[12,"Татарский язык(рус)","Артем ","Панушин",4,60.6,75,"Участник","Зарипова Лейля Рафкатовна",null,0,0]
[13,"Татарский язык(рус)","Анна","Медведкова",6,40,54,"Участник","Хуснутдинова Алсу Мухамматдиновна",null,0,0]
[14,"Татарский язык(рус)","Мария","Егорова ",5,22,70,"Участник","Шаймуллина Миляуша Мидхатовна",null,0,0]
[{"$nulls":10},0,0]
[{"$nulls":10},0,0]
[{"$nulls":10},{"$f":"IF(H26=\"ПРИЗЁР\",1,0)","v":0},{"$f":"IF(H26=\"ПОБЕДИТЕЛЬ\",1,0)","v":0}]
[{"$nulls":10},{"$f":"IF(H27=\"ПРИЗЁР\",1,0)","v":0},{"$f":"IF(H27=\"ПОБЕДИТЕЛЬ\",1,0)","v":0}]
[{"$nulls":10},{"$f":"IF(H28=\"ПРИЗЁР\",1,0)","v":0},{"$f":"IF(H28=\"ПОБЕДИТЕЛЬ\",1,0)","v":0}]
[{"$nulls":10},{"$f":"IF(H29=\"ПРИЗЁР\",1,0)","v":0},{"$f":"IF(H29=\"ПОБЕДИТЕЛЬ\",1,0)","v":0}]
[{"$nulls":10},{"$f":"IF(H30=\"ПРИЗЁР\",1,0)","v":0},{"$f":"IF(H30=\"ПОБЕДИТЕЛЬ\",1,0)","v":0}]
[{"$nulls":10},{"$f":"IF(H31=\"ПРИЗЁР\",1,0)","v":0},{"$f":"IF(H31=\"ПОБЕДИТЕЛЬ\",1,0)","v":0}]
[{"$nulls":10},{"$f":"IF(H32=\"ПРИЗЁР\",1,0)","v":0},{"$f":"IF(H32=\"ПОБЕДИТЕЛЬ\",1,0)","v":0}]
[{"$nulls":10},{"$f":"IF(H33=\"ПРИЗЁР\",1,0)","v":0},{"$f":"IF(H33=\"ПОБЕДИТЕЛЬ\",1,0)","v":0}]
[{"$nulls":10},{"$f":"IF(H34=\"ПРИЗЁР\",1,0)","v":0},{"$f":"IF(H34=\"ПОБЕДИТЕЛЬ\",1,0)","v":0}]
[{"$nulls":10},{"$f":"IF(H35=\"ПРИЗЁР\",1,0)","v":0},{"$f":"IF(H35=\"ПОБЕДИТЕЛЬ\",1,0)","v":0}]
[{"$nulls":10},{"$f":"IF(H36=\"ПРИЗЁР\",1,0)","v":0},{"$f":"IF(H36=\"ПОБЕДИТЕЛЬ\",1,0)","v":0}]
[{"$nulls":10},{"$f":"IF(H37=\"ПРИЗЁР\",1,0)","v":0},{"$f":"IF(H37=\"ПОБЕДИТЕЛЬ\",1,0)","v":0}]

{"sheet":"Обществознание","index":3,"n_rows":37,"n_cols":12,"rows_kept":37,"merged":[[1,0,1,8],[8,2,8,3]]}
[]
["Предварительный протокол по итогам муниципального этапа ВсОШ/РОШ  \nМБОУ \"Арская СОШ №6\" в 2019-2020 учебном году"]
[]
[null,"Этап олимпиады:",{"$nulls":5},"ПОБЕДИТЕЛИ",4]
[null,"Класс:",{"$nulls":5},"ПРИЗЕРЫ",7]
[null,"Дата проведения:"]
[null,"Место проведения:"]
[]
["№","Предмет","ФИ ученика",null,"Класс","Набранный балл","Максимальный балл","Статус (Победитель, Призер, Участник)","ФИО педагога, подготовившего участника олимпиады"]
[1,"Обществознание","Нигматзянова ","Диляра",7,26,50,"Участник","Сафарова Г.В.",null,{"$f":"IF(H10=\"ПРИЗЁР\",1,0)","v":0},{"$f":"IF(H10=\"ПОБЕДИТЕЛЬ\",1,0)","v":0}]
[2,"Обществознание","Хакимов ","Азамат",7,21,50,"участник","Сафарова Г.В.",null,{"$f":"IF(H11=\"ПРИЗЁР\",1,0)","v":0},{"$f":"IF(H11=\"ПОБЕДИТЕЛЬ\",1,0)","v":0}]
[3,"Обществознание","Рахимова ","Исламия",7,24,50,"участник","Сафарова Г.В.",null,0,0]
[4,"Обществознание","Абдрахманов ","Амир",9,40,80,"участник","Сафарова Г.В.",null,0,0]
[5,"Обществознание","Камалов","Дамир",9,68,80,"призер","Сафарова Г.В.",null,0,0]
[6,"Обществознание","Шафигуллин","Нияз",9,39,80,"участник","Сафарова Г.В.",null,0,0]
[7,"Обществознание","Мухутдинова","Язиля",10,78,80,"победитель","Сафарова Г.В.",null,0,1]
[8,"Обществознание","Нурмиев","Рустем",10,72,80,"призер","Сафарова Г.В.",null,0,0]
[9,"Обществознание","Ахмадиева","Диляра",11,68,80,"призер","Сафарова Г.В.",null,0,0]
[10,"Обществознание","Юнусова ","Амина",7,48,50,"победитель","Сергиев Д.Ю.",null,0,1]
[11,"Обществознание","Гатауллина ","Диляра ",7,48,50,"призер","Сергиев Д.Ю.",null,0,0]
[12,"Обществознание","Мухамадиева","Зарина",7,25,50,"участник","Сергиев Д.Ю.",null,0,0]
[13,"Обществознание","Гилязова ","Азалия ",7,10,50,"участник","Сергиев Д.Ю.",null,0,0]
[14,"Обществознание","Валиев","Амирхан",8,78,80,"победитель","Сергиев Д.Ю.",null,0,1]
[15,"Обществознание","Ахмадеев","Артур",8,69,80,"призер ","Сергиев Д.Ю.",null,0,0]
[16,"Обществознание","Фазулзянов ","Исмаил",8,23,80,"участник","Сергиев Д.Ю.",null,0,0]
[17,"Обществознание","Мазитова ","Ильсия ",9,78,80,"победитель","Сергиев Д.Ю.",null,{"$f":"IF(H26=\"ПРИЗЁР\",1,0)","v":0},{"$f":"IF(H26=\"ПОБЕДИТЕЛЬ\",1,0)","v":1}]
[18,"Обществознание","Хайруллин","Рафис",9,72,80,"призер","Сергиев Д.Ю.",null,{"$f":"IF(H27=\"ПРИЗЁР\",1,0)","v":0},{"$f":"IF(H27=\"ПОБЕДИТЕЛЬ\",1,0)","v":0}]
[19,"Обществознание","Нуриев","Амир",9,33,80,"участник","Сергиев Д.Ю.",null,{"$f":"IF(H28=\"ПРИЗЁР\",1,0)","v":0},{"$f":"IF(H28=\"ПОБЕДИТЕЛЬ\",1,0)","v":0}]
[20,"Обществознание","Габдуллин","Ильназ",9,33,80,"участник","Сергиев Д.Ю.",null,{"$f":"IF(H29=\"ПРИЗЁР\",1,0)","v":0},{"$f":"IF(H29=\"ПОБЕДИТЕЛЬ\",1,0)","v":0}]
[21,"Обществознание","Мифтахова ","Азалия ",9,31,80,"участник","Сергиев Д.Ю.",null,{"$f":"IF(H30=\"ПРИЗЁР\",1,0)","v":0},{"$f":"IF(H30=\"ПОБЕДИТЕЛЬ\",1,0)","v":0}]
[22,"Обществознание","Абайбуров ","Ильдар ",9,71,80,"призер","Сергиев Д.Ю.",null,{"$f":"IF(H31=\"ПРИЗЁР\",1,0)","v":0},{"$f":"IF(H31=\"ПОБЕДИТЕЛЬ\",1,0)","v":0}]
[{"$nulls":10},{"$f":"IF(H32=\"ПРИЗЁР\",1,0)","v":0},{"$f":"IF(H32=\"ПОБЕДИТЕЛЬ\",1,0)","v":0}]
[{"$nulls":10},{"$f":"IF(H33=\"ПРИЗЁР\",1,0)","v":0},{"$f":"IF(H33=\"ПОБЕДИТЕЛЬ\",1,0)","v":0}]
[{"$nulls":10},{"$f":"IF(H34=\"ПРИЗЁР\",1,0)","v":0},{"$f":"IF(H34=\"ПОБЕДИТЕЛЬ\",1,0)","v":0}]
[{"$nulls":10},{"$f":"IF(H35=\"ПРИЗЁР\",1,0)","v":0},{"$f":"IF(H35=\"ПОБЕДИТЕЛЬ\",1,0)","v":0}]
[{"$nulls":10},{"$f":"IF(H36=\"ПРИЗЁР\",1,0)","v":0},{"$f":"IF(H36=\"ПОБЕДИТЕЛЬ\",1,0)","v":0}]
[{"$nulls":10},{"$f":"IF(H37=\"ПРИЗЁР\",1,0)","v":0},{"$f":"IF(H37=\"ПОБЕДИТЕЛЬ\",1,0)","v":0}]

{"sheet":"Геология","index":4,"n_rows":37,"n_cols":12,"rows_kept":37,"merged":[[1,0,1,8],[8,2,8,3]]}
[]
["Предварительный протокол по итогам муниципального этапа ВсОШ/РОШ  \nМБОУ \"Арская СОШ №6\" в 2019-2020 учебном году"]
[]
[null,"Этап олимпиады:",{"$nulls":5},"ПОБЕДИТЕЛИ",2]
[null,"Класс:",{"$nulls":5},"ПРИЗЕРЫ",2]
[null,"Дата проведения:"]
[null,"Место проведения:"]
[]
["№","Предмет","ФИ ученика",null,"Класс","Набранный балл","Максимальный балл","Статус (Победитель, Призер, Участник)","ФИО педагога, подготовившего участника олимпиады"]
[1,"Геология","Мухаметзянов  ","Расих",9,10,28,"Участник","Хусаинова Назия Гаптелфартовна",null,{"$f":"IF(H10=\"ПРИЗЁР\",1,0)","v":0},{"$f":"IF(H10=\"ПОБЕДИТЕЛЬ\",1,0)","v":0}]
[2,"Геология","Абдрахманов","Амир",9,25,28,"Победитель","Хусаинова Назия Гаптелфартовна",null,{"$f":"IF(H11=\"ПРИЗЁР\",1,0)","v":0},{"$f":"IF(H11=\"ПОБЕДИТЕЛЬ\",1,0)","v":1}]
[3,"Геология","Ахмадиева","Диляра",11,24,29,"Призер","Хусаинова Назия Гаптелфартовна",null,0,0]
[4,"Геология","Закирзянов","Азамат",11,25,29,"Победитель","Хусаинова Назия Гаптелфартовна",null,0,1]
[5,"Геология","Валиев ","Амирхан ",8,18,22,"призер","Хусаинова Назия Гаптелфартовна",null,0,0]
[6,"Геология","Фазулзянов","Исмаил",8,8,22,"Участник","Хусаинова Назия Гаптелфартовна",null,0,0]
[{"$nulls":10},0,0]
[{"$nulls":10},0,0]
[{"$nulls":10},0,0]
[{"$nulls":10},0,0]
[{"$nulls":10},0,0]
[{"$nulls":10},0,0]
[{"$nulls":10},0,0]
[{"$nulls":10},0,0]
[{"$nulls":10},0,0]
[{"$nulls":10},0,0]
[{"$nulls":10},{"$f":"IF(H26=\"ПРИЗЁР\",1,0)","v":0},{"$f":"IF(H26=\"ПОБЕДИТЕЛЬ\",1,0)","v":0}]
[{"$nulls":10},{"$f":"IF(H27=\"ПРИЗЁР\",1,0)","v":0},{"$f":"IF(H27=\"ПОБЕДИТЕЛЬ\",1,0)","v":0}]
[{"$nulls":10},{"$f":"IF(H28=\"ПРИЗЁР\",1,0)","v":0},{"$f":"IF(H28=\"ПОБЕДИТЕЛЬ\",1,0)","v":0}]
[{"$nulls":10},{"$f":"IF(H29=\"ПРИЗЁР\",1,0)","v":0},{"$f":"IF(H29=\"ПОБЕДИТЕЛЬ\",1,0)","v":0}]
[{"$nulls":10},{"$f":"IF(H30=\"ПРИЗЁР\",1,0)","v":0},{"$f":"IF(H30=\"ПОБЕДИТЕЛЬ\",1,0)","v":0}]
[{"$nulls":10},{"$f":"IF(H31=\"ПРИЗЁР\",1,0)","v":0},{"$f":"IF(H31=\"ПОБЕДИТЕЛЬ\",1,0)","v":0}]
[{"$nulls":10},{"$f":"IF(H32=\"ПРИЗЁР\",1,0)","v":0},{"$f":"IF(H32=\"ПОБЕДИТЕЛЬ\",1,0)","v":0}]
[{"$nulls":10},{"$f":"IF(H33=\"ПРИЗЁР\",1,0)","v":0},{"$f":"IF(H33=\"ПОБЕДИТЕЛЬ\",1,0)","v":0}]
[{"$nulls":10},{"$f":"IF(H34=\"ПРИЗЁР\",1,0)","v":0},{"$f":"IF(H34=\"ПОБЕДИТЕЛЬ\",1,0)","v":0}]
[{"$nulls":10},{"$f":"IF(H35=\"ПРИЗЁР\",1,0)","v":0},{"$f":"IF(H35=\"ПОБЕДИТЕЛЬ\",1,0)","v":0}]
[{"$nulls":10},{"$f":"IF(H36=\"ПРИЗЁР\",1,0)","v":0},{"$f":"IF(H36=\"ПОБЕДИТЕЛЬ\",1,0)","v":0}]
[{"$nulls":10},{"$f":"IF(H37=\"ПРИЗЁР\",1,0)","v":0},{"$f":"IF(H37=\"ПОБЕДИТЕЛЬ\",1,0)","v":0}]

{"sheet":"Искусство","index":5,"n_rows":37,"n_cols":12,"rows_kept":37,"merged":[[1,0,1,8],[8,2,8,3]]}
[]
["Предварительный протокол по итогам муниципального этапа ВсОШ/РОШ  \nМБОУ \"Арская СОШ №6\" в 2019-2020 учебном году"]
[]
[null,"Этап олимпиады:",{"$nulls":5},"ПОБЕДИТЕЛИ",1]
[null,"Класс:",{"$nulls":5},"ПРИЗЕРЫ",2]
[null,"Дата проведения:"]
[null,"Место проведения:"]
[]
["№","Предмет","ФИ ученика",null,"Класс","Набранный балл","Максимальный балл","Статус (Победитель, Призер, Участник)","ФИО педагога, подготовившего участника олимпиады"]
[1,"Искусство","Альтапова ","Зарина",8,123,165,"победитель","Хусаинова Назия Гаптелфартовна",null,{"$f":"IF(H10=\"ПРИЗЁР\",1,0)","v":0},{"$f":"IF(H10=\"ПОБЕДИТЕЛЬ\",1,0)","v":1}]
[2,"Искусство","Калачова ","Азалия",8,79,165,"участник",null,null,{"$f":"IF(H11=\"ПРИЗЁР\",1,0)","v":0},{"$f":"IF(H11=\"ПОБЕДИТЕЛЬ\",1,0)","v":0}]
[3,"Искусство","Багаутдинов","Ранис",7,83,165,"участник",null,null,0,0]
[4,"Искусство","Гарифзянов","Тимур",8,121,165,"призер",null,null,0,0]
[5,"Искусство","Сиразиев ","Данил",8,117,165,"призер",null,null,0,0]
[{"$nulls":10},0,0]
[{"$nulls":10},0,0]
[{"$nulls":10},0,0]
[{"$nulls":10},0,0]
[{"$nulls":10},0,0]
[{"$nulls":10},0,0]
[{"$nulls":10},0,0]
[{"$nulls":10},0,0]
[{"$nulls":10},0,0]
[{"$nulls":10},0,0]
[{"$nulls":10},0,0]
[{"$nulls":10},{"$f":"IF(H26=\"ПРИЗЁР\",1,0)","v":0},{"$f":"IF(H26=\"ПОБЕДИТЕЛЬ\",1,0)","v":0}]
[{"$nulls":10},{"$f":"IF(H27=\"ПРИЗЁР\",1,0)","v":0},{"$f":"IF(H27=\"ПОБЕДИТЕЛЬ\",1,0)","v":0}]
[{"$nulls":10},{"$f":"IF(H28=\"ПРИЗЁР\",1,0)","v":0},{"$f":"IF(H28=\"ПОБЕДИТЕЛЬ\",1,0)","v":0}]
[{"$nulls":10},{"$f":"IF(H29=\"ПРИЗЁР\",1,0)","v":0},{"$f":"IF(H29=\"ПОБЕДИТЕЛЬ\",1,0)","v":0}]
[{"$nulls":10},{"$f":"IF(H30=\"ПРИЗЁР\",1,0)","v":0},{"$f":"IF(H30=\"ПОБЕДИТЕЛЬ\",1,0)","v":0}]
[{"$nulls":10},{"$f":"IF(H31=\"ПРИЗЁР\",1,0)","v":0},{"$f":"IF(H31=\"ПОБЕДИТЕЛЬ\",1,0)","v":0}]
[{"$nulls":10},{"$f":"IF(H32=\"ПРИЗЁР\",1,0)","v":0},{"$f":"IF(H32=\"ПОБЕДИТЕЛЬ\",1,0)","v":0}]
[{"$nulls":10},{"$f":"IF(H33=\"ПРИЗЁР\",1,0)","v":0},{"$f":"IF(H33=\"ПОБЕДИТЕЛЬ\",1,0)","v":0}]
[{"$nulls":10},{"$f":"IF(H34=\"ПРИЗЁР\",1,0)","v":0},{"$f":"IF(H34=\"ПОБЕДИТЕЛЬ\",1,0)","v":0}]
[{"$nulls":10},{"$f":"IF(H35=\"ПРИЗЁР\",1,0)","v":0},{"$f":"IF(H35=\"ПОБЕДИТЕЛЬ\",1,0)","v":0}]
[{"$nulls":10},{"$f":"IF(H36=\"ПРИЗЁР\",1,0)","v":0},{"$f":"IF(H36=\"ПОБЕДИТЕЛЬ\",1,0)","v":0}]
[{"$nulls":10},{"$f":"IF(H37=\"ПРИЗЁР\",1,0)","v":0},{"$f":"IF(H37=\"ПОБЕДИТЕЛЬ\",1,0)","v":0}]

{"sheet":"Физика","index":6,"n_rows":37,"n_cols":12,"rows_kept":37,"merged":[[1,0,1,8],[8,2,8,3]]}
[]
["Предварительный протокол по итогам муниципального этапа ВсОШ/РОШ  \nМБОУ \"Арская СОШ №6\" в 2019-2020 учебном году"]
[]
[null,"Этап олимпиады:",{"$nulls":5},"ПОБЕДИТЕЛИ",2]
[null,"Класс:",{"$nulls":5},"ПРИЗЕРЫ",3]
[null,"Дата проведения:"]
[null,"Место проведения:"]
[]
["№","Предмет","ФИ ученика",null,"Класс","Набранный балл","Максимальный балл","Статус (Победитель, Призер, Участник)","ФИО педагога, подготовившего участника олимпиады"]
[1,"Физика","Раушания","Ниязовна",7,13,30,"призер","Хамидуллина Чулпан Дамировна",null,{"$f":"IF(H10=\"ПРИЗЁР\",1,0)","v":0},{"$f":"IF(H10=\"ПОБЕДИТЕЛЬ\",1,0)","v":0}]
[2,"Физика"," Амир","Ленарович",8,21,30,"победитель","Хамидуллина Чулпан Дамировна",null,{"$f":"IF(H11=\"ПРИЗЁР\",1,0)","v":0},{"$f":"IF(H11=\"ПОБЕДИТЕЛЬ\",1,0)","v":1}]
[3,"Физика","Расих","Ниязович",9,20,30,"победитель","Хамидуллина Чулпан Дамировна",null,0,1]
[4,"Физика","Язиля","Фанилевна",10,19,30,"призер","Хамидуллина Чулпан Дамировна",null,0,0]
[5,"Физика","Илюза ","Азатовна",11,10,30,"призер","Хамидуллина Чулпан Дамировна",null,0,0]
[{"$nulls":10},0,0]
[{"$nulls":10},0,0]
[{"$nulls":10},0,0]
[{"$nulls":10},0,0]
[{"$nulls":10},0,0]
[{"$nulls":10},0,0]
[{"$nulls":10},0,0]
[{"$nulls":10},0,0]
[{"$nulls":10},0,0]
[{"$nulls":10},0,0]
[{"$nulls":10},0,0]
[{"$nulls":10},{"$f":"IF(H26=\"ПРИЗЁР\",1,0)","v":0},{"$f":"IF(H26=\"ПОБЕДИТЕЛЬ\",1,0)","v":0}]
[{"$nulls":10},{"$f":"IF(H27=\"ПРИЗЁР\",1,0)","v":0},{"$f":"IF(H27=\"ПОБЕДИТЕЛЬ\",1,0)","v":0}]
[{"$nulls":10},{"$f":"IF(H28=\"ПРИЗЁР\",1,0)","v":0},{"$f":"IF(H28=\"ПОБЕДИТЕЛЬ\",1,0)","v":0}]
[{"$nulls":10},{"$f":"IF(H29=\"ПРИЗЁР\",1,0)","v":0},{"$f":"IF(H29=\"ПОБЕДИТЕЛЬ\",1,0)","v":0}]
[{"$nulls":10},{"$f":"IF(H30=\"ПРИЗЁР\",1,0)","v":0},{"$f":"IF(H30=\"ПОБЕДИТЕЛЬ\",1,0)","v":0}]
[{"$nulls":10},{"$f":"IF(H31=\"ПРИЗЁР\",1,0)","v":0},{"$f":"IF(H31=\"ПОБЕДИТЕЛЬ\",1,0)","v":0}]
[{"$nulls":10},{"$f":"IF(H32=\"ПРИЗЁР\",1,0)","v":0},{"$f":"IF(H32=\"ПОБЕДИТЕЛЬ\",1,0)","v":0}]
[{"$nulls":10},{"$f":"IF(H33=\"ПРИЗЁР\",1,0)","v":0},{"$f":"IF(H33=\"ПОБЕДИТЕЛЬ\",1,0)","v":0}]
[{"$nulls":10},{"$f":"IF(H34=\"ПРИЗЁР\",1,0)","v":0},{"$f":"IF(H34=\"ПОБЕДИТЕЛЬ\",1,0)","v":0}]
[{"$nulls":10},{"$f":"IF(H35=\"ПРИЗЁР\",1,0)","v":0},{"$f":"IF(H35=\"ПОБЕДИТЕЛЬ\",1,0)","v":0}]
[{"$nulls":10},{"$f":"IF(H36=\"ПРИЗЁР\",1,0)","v":0},{"$f":"IF(H36=\"ПОБЕДИТЕЛЬ\",1,0)","v":0}]
[{"$nulls":10},{"$f":"IF(H37=\"ПРИЗЁР\",1,0)","v":0},{"$f":"IF(H37=\"ПОБЕДИТЕЛЬ\",1,0)","v":0}]

{"sheet":"География","index":7,"n_rows":37,"n_cols":12,"rows_kept":37,"merged":[[1,0,1,8],[8,2,8,3]]}
[]
["Предварительный протокол по итогам муниципального этапа ВсОШ/РОШ  \nМБОУ \"Арская СОШ №6\" в 2019-2020 учебном году"]
[]
[null,"Этап олимпиады:",{"$nulls":5},"ПОБЕДИТЕЛИ",5]
[null,"Класс:",{"$nulls":5},"ПРИЗЕРЫ",5]
[null,"Дата проведения:"]
[null,"Место проведения:"]
[]
["№","Предмет","ФИ ученика",null,"Класс","Набранный балл","Максимальный балл","Статус (Победитель, Призер, Участник)","ФИО педагога, подготовившего участника олимпиады"]
[1,"География","Асадуллин","Ильяс",6,44,55,"призер","Хусаинова Назия Гаптелфартовна",null,{"$f":"IF(H10=\"ПРИЗЁР\",1,0)","v":0},{"$f":"IF(H10=\"ПОБЕДИТЕЛЬ\",1,0)","v":0}]
[2,"География","Осина","Виктория",6,51,55,"победитель","Хусаинова Назия Гаптелфартовна ",null,{"$f":"IF(H11=\"ПРИЗЁР\",1,0)","v":0},{"$f":"IF(H11=\"ПОБЕДИТЕЛЬ\",1,0)","v":1}]
[3,"География","Тазиева ","Фируза",6,18,55,"участник","Хусаинова Назия Гаптелфартовна",null,0,0]
[4,"География","Мухаметзянова","Раушания",7,38,50,"призер","Хусаинова Назия Гаптелфартовна",null,0,0]
[5,"География","Сулейманов","Ислам ",7,52,50,"победитель","Хусаинова Назия Гаптелфартовна",null,0,1]
[6,"География","Абдуллин","Амир",8,55,61,"победитель","Хусаинова Назия Гаптелфартовна",null,0,1]
[7,"География","Валиев ","Амирхан",8,49,61,"призер","Хусаинова Назия Гаптелфартовна",null,0,0]
[8,"География","Сиразиев","Данил",8,30,61,"участник","Хусаинова Назия Гаптелфартовна",null,0,0]
[9,"География","Фазулзянов ","Исмаил",8,29,61,"участник","Хусаинова Назия Гаптелфартовна",null,0,0]
[10,"География","Абдрахманов"," Амир",9,57,60,"победитель","Хусаинова Назия Гаптелфартовна",null,0,1]
[11,"География","Мухаметзянов ","Расих",9,49,60,"призер","Хусаинова Назия Гаптелфартовна",null,0,0]
[12,"География","Нуриев","Амир",9,28,60,"участник","Хусаинова Назия Гаптелфартовна",null,0,0]
[13,"География","Ахмадиева","Диляра",11,61,65,"победитель","Хусаинова Назия Гаптелфартовна",null,0,1]
[14,"География","Закирзянов ","Азамат",11,58,65,"призер","Хусаинова Назия Гаптелфартовна",null,0,0]
[{"$nulls":10},0,0]
[{"$nulls":10},0,0]
[{"$nulls":10},{"$f":"IF(H26=\"ПРИЗЁР\",1,0)","v":0},{"$f":"IF(H26=\"ПОБЕДИТЕЛЬ\",1,0)","v":0}]
[{"$nulls":10},{"$f":"IF(H27=\"ПРИЗЁР\",1,0)","v":0},{"$f":"IF(H27=\"ПОБЕДИТЕЛЬ\",1,0)","v":0}]
[{"$nulls":10},{"$f":"IF(H28=\"ПРИЗЁР\",1,0)","v":0},{"$f":"IF(H28=\"ПОБЕДИТЕЛЬ\",1,0)","v":0}]
[{"$nulls":10},{"$f":"IF(H29=\"ПРИЗЁР\",1,0)","v":0},{"$f":"IF(H29=\"ПОБЕДИТЕЛЬ\",1,0)","v":0}]
[{"$nulls":10},{"$f":"IF(H30=\"ПРИЗЁР\",1,0)","v":0},{"$f":"IF(H30=\"ПОБЕДИТЕЛЬ\",1,0)","v":0}]
[{"$nulls":10},{"$f":"IF(H31=\"ПРИЗЁР\",1,0)","v":0},{"$f":"IF(H31=\"ПОБЕДИТЕЛЬ\",1,0)","v":0}]
[{"$nulls":10},{"$f":"IF(H32=\"ПРИЗЁР\",1,0)","v":0},{"$f":"IF(H32=\"ПОБЕДИТЕЛЬ\",1,0)","v":0}]
[{"$nulls":10},{"$f":"IF(H33=\"ПРИЗЁР\",1,0)","v":0},{"$f":"IF(H33=\"ПОБЕДИТЕЛЬ\",1,0)","v":0}]
[{"$nulls":10},{"$f":"IF(H34=\"ПРИЗЁР\",1,0)","v":0},{"$f":"IF(H34=\"ПОБЕДИТЕЛЬ\",1,0)","v":0}]
[{"$nulls":10},{"$f":"IF(H35=\"ПРИЗЁР\",1,0)","v":0},{"$f":"IF(H35=\"ПОБЕДИТЕЛЬ\",1,0)","v":0}]
[{"$nulls":10},{"$f":"IF(H36=\"ПРИЗЁР\",1,0)","v":0},{"$f":"IF(H36=\"ПОБЕДИТЕЛЬ\",1,0)","v":0}]
[{"$nulls":10},{"$f":"IF(H37=\"ПРИЗЁР\",1,0)","v":0},{"$f":"IF(H37=\"ПОБЕДИТЕЛЬ\",1,0)","v":0}]

{"sheet":"Физкультура","index":8,"n_rows":37,"n_cols":12,"rows_kept":37,"merged":[[1,0,1,8],[8,2,8,3]]}
[]
["Предварительный протокол по итогам муниципального этапа ВсОШ/РОШ  \nМБОУ \"Арская СОШ №6\" в 2019-2020 учебном году"]
[]
[null,"Этап олимпиады:",{"$nulls":5},"ПОБЕДИТЕЛИ",3]
[null,"Класс:",{"$nulls":5},"ПРИЗЕРЫ",13]
[null,"Дата проведения:"]
[null,"Место проведения:"]
[]
["№","Предмет","ФИ ученика",null,"Класс","Набранный балл","Максимальный балл","Статус (Победитель, Призер, Участник)","ФИО педагога, подготовившего участника олимпиады"]
[1,"Физкультура","Камиля","Радиковна",7,87,100,"призер","Хидиятуллин Фаниль Фанисович",null,{"$f":"IF(H10=\"ПРИЗЁР\",1,0)","v":0},{"$f":"IF(H10=\"ПОБЕДИТЕЛЬ\",1,0)","v":0}]
[2,"Физкультура","Полина","Дмитриевна",7,94,100,"победитель","Хидиятуллин Фаниль Фанисович",null,{"$f":"IF(H11=\"ПРИЗЁР\",1,0)","v":0},{"$f":"IF(H11=\"ПОБЕДИТЕЛЬ\",1,0)","v":1}]
[3,"Физкультура","Адиля","Зульфатовна",7,90,100,"призер","Хидиятуллин Фаниль Фанисович",null,0,0]
[4,"Физкультура","Аяз","Алмазович",7,92,100,"призер","Хидиятуллин Фаниль Фанисович",null,0,0]
[5,"Физкультура","Зульфат","Фиргатович",7,90,100,"призер","Хидиятуллин Фаниль Фанисович",null,0,0]
[6,"Физкультура","Зиля","Ранисовна",7,92,100,"призер","Набиуллин Ранис Расипович",null,0,0]
[7,"Физкультура","Ильяс","Алмазович",7,93,100,"призер","Набиуллин Ранис Расипович",null,0,0]
[8,"Физкультура","Данияр","Маратови",7,91,100,"призер","Набиуллин Ранис Расипович",null,0,0]
[9,"Физкультура","Ильсия","Ринатови",9,97,100,"победитель","Набиуллин Ранис Расипович",null,0,1]
[10,"Физкультура","Альфис","Фанисович",9,95,100,"победитель","Хидиятуллин Фаниль Фанисович",null,0,1]
[11,"Физкультура","Адель","Ильназович",9,93,100,"призер","Хидиятуллин Фаниль Фанисович",null,0,0]
[12,"Физкультура","Роберт","Русланович",8,90,100,"призер","Набиуллин Ранис Расипович",null,0,0]
[13,"Физкультура","Нияз","Рамилеви",9,89,100,"призер","Набиуллин Ранис Расипович",null,0,0]
[14,"Физкультура","Раниль ","Ривалевич",7,89,100,"призер","Хидиятуллин Фаниль Фанисович",null,0,0]
[15,"Физкультура","Диана","Юрьевна",10,90,100,"призер","Хидиятуллин Фаниль Фанисович",null,0,0]
[{"$nulls":10},0,0]
[{"$nulls":10},{"$f":"IF(H26=\"ПРИЗЁР\",1,0)","v":0},{"$f":"IF(H26=\"ПОБЕДИТЕЛЬ\",1,0)","v":0}]
[{"$nulls":10},{"$f":"IF(H27=\"ПРИЗЁР\",1,0)","v":0},{"$f":"IF(H27=\"ПОБЕДИТЕЛЬ\",1,0)","v":0}]
[{"$nulls":10},{"$f":"IF(H28=\"ПРИЗЁР\",1,0)","v":0},{"$f":"IF(H28=\"ПОБЕДИТЕЛЬ\",1,0)","v":0}]
[{"$nulls":10},{"$f":"IF(H29=\"ПРИЗЁР\",1,0)","v":0},{"$f":"IF(H29=\"ПОБЕДИТЕЛЬ\",1,0)","v":0}]
[{"$nulls":10},{"$f":"IF(H30=\"ПРИЗЁР\",1,0)","v":0},{"$f":"IF(H30=\"ПОБЕДИТЕЛЬ\",1,0)","v":0}]
[{"$nulls":10},{"$f":"IF(H31=\"ПРИЗЁР\",1,0)","v":0},{"$f":"IF(H31=\"ПОБЕДИТЕЛЬ\",1,0)","v":0}]
[{"$nulls":10},{"$f":"IF(H32=\"ПРИЗЁР\",1,0)","v":0},{"$f":"IF(H32=\"ПОБЕДИТЕЛЬ\",1,0)","v":0}]
[{"$nulls":10},{"$f":"IF(H33=\"ПРИЗЁР\",1,0)","v":0},{"$f":"IF(H33=\"ПОБЕДИТЕЛЬ\",1,0)","v":0}]
[{"$nulls":10},{"$f":"IF(H34=\"ПРИЗЁР\",1,0)","v":0},{"$f":"IF(H34=\"ПОБЕДИТЕЛЬ\",1,0)","v":0}]
[{"$nulls":10},{"$f":"IF(H35=\"ПРИЗЁР\",1,0)","v":0},{"$f":"IF(H35=\"ПОБЕДИТЕЛЬ\",1,0)","v":0}]
[{"$nulls":10},{"$f":"IF(H36=\"ПРИЗЁР\",1,0)","v":0},{"$f":"IF(H36=\"ПОБЕДИТЕЛЬ\",1,0)","v":0}]
[{"$nulls":10},{"$f":"IF(H37=\"ПРИЗЁР\",1,0)","v":0},{"$f":"IF(H37=\"ПОБЕДИТЕЛЬ\",1,0)","v":0}]

{"sheet":"Экономика","index":9,"n_rows":37,"n_cols":12,"rows_kept":37,"merged":[[1,0,1,8],[8,2,8,3]]}
[]
["Предварительный протокол по итогам муниципального этапа ВсОШ/РОШ  \nМБОУ \"Арская СОШ №6\" в 2019-2020 учебном году"]
[]
[null,"Этап олимпиады:",{"$nulls":5},"ПОБЕДИТЕЛИ",0]
[null,"Класс:",{"$nulls":5},"ПРИЗЕРЫ",4]
[null,"Дата проведения:"]
[null,"Место проведения:"]
[]
["№","Предмет","ФИ ученика",null,"Класс","Набранный балл","Максимальный балл","Статус (Победитель, Призер, Участник)","ФИО педагога, подготовившего участника олимпиады"]
[1,"Экономика","Гарифуллина ","Рафина",5,16,50,"Участник","Сафарова Г.В.",null,{"$f":"IF(H10=\"ПРИЗЁР\",1,0)","v":0},{"$f":"IF(H10=\"ПОБЕДИТЕЛЬ\",1,0)","v":0}]
[2,"Экономика","Зайнакова ","Йолдыз",6,17,50,"Участник","Сафарова Г.В.",null,{"$f":"IF(H11=\"ПРИЗЁР\",1,0)","v":0},{"$f":"IF(H11=\"ПОБЕДИТЕЛЬ\",1,0)","v":0}]
[3,"Экономика","Сафиуллина ","Алия",6,19,50,"Участник","Сафарова Г.В.",null,0,0]
[4,"Экономика","Мухаметзянова","Раушания",7,31,70,"Участник","Сафарова Г.В.",null,0,0]
[5,"Экономика","Рахимова","Исламия",7,29,70,"Участник","Сафарова Г.В.",null,0,0]
[6,"Экономика","Хафизов ","Искандер",9,21,100,"Участник","Сафарова Г.В.",null,0,0]
[7,"Экономика","Гараева ","Залия",10,55,100,"Участник","Сафарова Г.В.",null,0,0]
[8,"Экономика","Салихзянова ","Лейсан ",10,63,100,"призер","Сафарова Г.В.",null,0,0]
[9,"Экономика","Закирзянов","Азамат",11,67,100,"призер","Сафарова Г.В.",null,0,0]
[10,"Экономика","Медведкова ","Анна",6,12,50,"Участник","Сергиев Д.Ю",null,0,0]
[11,"Экономика","Тазиева ","Фируза",6,17,50,"Участник","Сергиев Д.Ю",null,0,0]
[12,"Экономика","Юнусова","Амина",7,14,70,"Участник","Сергиев Д.Ю",null,0,0]
[13,"Экономика","Загидуллин","Инсаф",7,15,70,"Участник","Сергиев Д.Ю",null,0,0]
[14,"Экономика","Абдуллин","Амир",8,18,70,"Участник","Сергиев Д.Ю",null,0,0]
[15,"Экономика","Нуриев","Амир",9,17,100,"Участник","Сергиев Д.Ю",null,0,0]
[16,"Экономика","Абайбуров","Ильдар",9,59,100,"призер","Сергиев Д.Ю",null,0,0]
[17,"Экономика","Сабиров ","Алим",9,18,100,"Участник","Сергиев Д.Ю",null,{"$f":"IF(H26=\"ПРИЗЁР\",1,0)","v":0},{"$f":"IF(H26=\"ПОБЕДИТЕЛЬ\",1,0)","v":0}]
[18,"Экономика","Сабиров ","Искандер",9,61,100,"призер","Сергиев Д.Ю",null,{"$f":"IF(H27=\"ПРИЗЁР\",1,0)","v":0},{"$f":"IF(H27=\"ПОБЕДИТЕЛЬ\",1,0)","v":0}]
[19,"Экономика","Хайруллин","Инсаф",9,19,100,"Участник","Сергиев Д.Ю",null,{"$f":"IF(H28=\"ПРИЗЁР\",1,0)","v":0},{"$f":"IF(H28=\"ПОБЕДИТЕЛЬ\",1,0)","v":0}]
[{"$nulls":10},{"$f":"IF(H29=\"ПРИЗЁР\",1,0)","v":0},{"$f":"IF(H29=\"ПОБЕДИТЕЛЬ\",1,0)","v":0}]
[{"$nulls":10},{"$f":"IF(H30=\"ПРИЗЁР\",1,0)","v":0},{"$f":"IF(H30=\"ПОБЕДИТЕЛЬ\",1,0)","v":0}]
[{"$nulls":10},{"$f":"IF(H31=\"ПРИЗЁР\",1,0)","v":0},{"$f":"IF(H31=\"ПОБЕДИТЕЛЬ\",1,0)","v":0}]
[{"$nulls":10},{"$f":"IF(H32=\"ПРИЗЁР\",1,0)","v":0},{"$f":"IF(H32=\"ПОБЕДИТЕЛЬ\",1,0)","v":0}]
[{"$nulls":10},{"$f":"IF(H33=\"ПРИЗЁР\",1,0)","v":0},{"$f":"IF(H33=\"ПОБЕДИТЕЛЬ\",1,0)","v":0}]
[{"$nulls":10},{"$f":"IF(H34=\"ПРИЗЁР\",1,0)","v":0},{"$f":"IF(H34=\"ПОБЕДИТЕЛЬ\",1,0)","v":0}]
[{"$nulls":10},{"$f":"IF(H35=\"ПРИЗЁР\",1,0)","v":0},{"$f":"IF(H35=\"ПОБЕДИТЕЛЬ\",1,0)","v":0}]
[{"$nulls":10},{"$f":"IF(H36=\"ПРИЗЁР\",1,0)","v":0},{"$f":"IF(H36=\"ПОБЕДИТЕЛЬ\",1,0)","v":0}]
[{"$nulls":10},{"$f":"IF(H37=\"ПРИЗЁР\",1,0)","v":0},{"$f":"IF(H37=\"ПОБЕДИТЕЛЬ\",1,0)","v":0}]

{"sheet":"Экология","index":10,"n_rows":37,"n_cols":12,"rows_kept":37,"merged":[[1,0,1,8],[8,2,8,3]]}
[]
["Предварительный протокол по итогам муниципального этапа ВсОШ/РОШ  \nМБОУ \"Арская СОШ №6\" в 2019-2020 учебном году"]
[]
[null,"Этап олимпиады:",{"$nulls":5},"ПОБЕДИТЕЛИ",2]
[null,"Класс:",{"$nulls":5},"ПРИЗЕРЫ",4]
[null,"Дата проведения:"]
[null,"Место проведения:"]
[]
["№","Предмет","ФИ ученика",null,"Класс","Набранный балл","Максимальный балл","Статус (Победитель, Призер, Участник)","ФИО педагога, подготовившего участника олимпиады"]
[1,"Экология","Гарифзянов ","Тимур",8,17,20,"Победитель","Петрова Эвелина Игоревна",null,{"$f":"IF(H10=\"ПРИЗЁР\",1,0)","v":0},{"$f":"IF(H10=\"ПОБЕДИТЕЛЬ\",1,0)","v":1}]
[2,"Экология","Сиразиев","Данил",8,9,20,"Участник","Петрова Эвелина Игоревна",null,{"$f":"IF(H11=\"ПРИЗЁР\",1,0)","v":0},{"$f":"IF(H11=\"ПОБЕДИТЕЛЬ\",1,0)","v":0}]
[3,"Экология","Ахмадеев ","Артур",8,14,20,"Призер","Петрова Эвелина Игоревна",null,0,0]
[4,"Экология","Фазулзянов","Исмаил",8,8,20,"Участник","Петрова Эвелина Игоревна",null,0,0]
[5,"Экология","Абдрахманов ","Амир ",9,16,20,"Призер","Петрова Эвелина Игоревна",null,0,0]
[6,"Экология","Мазитова ","Ильсия",9,17,20,"Призер","Петрова Эвелина Игоревна",null,0,0]
[7,"Экология","Мифтахова "," Азалия ",9,18,20,"Победитель","Петрова Эвелина Игоревна",null,0,1]
[8,"Экология","Хамдеева "," Диляра ",9,10,20,"Участник","Петрова Эвелина Игоревна",null,0,0]
[9,"Экология","Нурмиева","Алия",9,17,20,"Призер","Петрова Эвелина Игоревна",null,0,0]
[{"$nulls":10},0,0]
[{"$nulls":10},0,0]
[{"$nulls":10},0,0]
[{"$nulls":10},0,0]
[{"$nulls":10},0,0]
[{"$nulls":10},0,0]
[{"$nulls":10},0,0]
[{"$nulls":10},{"$f":"IF(H26=\"ПРИЗЁР\",1,0)","v":0},{"$f":"IF(H26=\"ПОБЕДИТЕЛЬ\",1,0)","v":0}]
[{"$nulls":10},{"$f":"IF(H27=\"ПРИЗЁР\",1,0)","v":0},{"$f":"IF(H27=\"ПОБЕДИТЕЛЬ\",1,0)","v":0}]
[{"$nulls":10},{"$f":"IF(H28=\"ПРИЗЁР\",1,0)","v":0},{"$f":"IF(H28=\"ПОБЕДИТЕЛЬ\",1,0)","v":0}]
[{"$nulls":10},{"$f":"IF(H29=\"ПРИЗЁР\",1,0)","v":0},{"$f":"IF(H29=\"ПОБЕДИТЕЛЬ\",1,0)","v":0}]
[{"$nulls":10},{"$f":"IF(H30=\"ПРИЗЁР\",1,0)","v":0},{"$f":"IF(H30=\"ПОБЕДИТЕЛЬ\",1,0)","v":0}]
[{"$nulls":10},{"$f":"IF(H31=\"ПРИЗЁР\",1,0)","v":0},{"$f":"IF(H31=\"ПОБЕДИТЕЛЬ\",1,0)","v":0}]
[{"$nulls":10},{"$f":"IF(H32=\"ПРИЗЁР\",1,0)","v":0},{"$f":"IF(H32=\"ПОБЕДИТЕЛЬ\",1,0)","v":0}]
[{"$nulls":10},{"$f":"IF(H33=\"ПРИЗЁР\",1,0)","v":0},{"$f":"IF(H33=\"ПОБЕДИТЕЛЬ\",1,0)","v":0}]
[{"$nulls":10},{"$f":"IF(H34=\"ПРИЗЁР\",1,0)","v":0},{"$f":"IF(H34=\"ПОБЕДИТЕЛЬ\",1,0)","v":0}]
[{"$nulls":10},{"$f":"IF(H35=\"ПРИЗЁР\",1,0)","v":0},{"$f":"IF(H35=\"ПОБЕДИТЕЛЬ\",1,0)","v":0}]
[{"$nulls":10},{"$f":"IF(H36=\"ПРИЗЁР\",1,0)","v":0},{"$f":"IF(H36=\"ПОБЕДИТЕЛЬ\",1,0)","v":0}]
[{"$nulls":10},{"$f":"IF(H37=\"ПРИЗЁР\",1,0)","v":0},{"$f":"IF(H37=\"ПОБЕДИТЕЛЬ\",1,0)","v":0}]

{"sheet":"Родная литература","index":11,"n_rows":45,"n_cols":12,"rows_kept":45,"merged":[[1,0,1,8],[8,2,8,3]]}
[]
["Предварительный протокол по итогам муниципального этапа ВсОШ/РОШ  \nМБОУ \"Арская СОШ №6\" в 2019-2020 учебном году"]
[]
[null,"Этап олимпиады:",{"$nulls":5},"ПОБЕДИТЕЛИ",2]
[null,"Класс:",{"$nulls":5},"ПРИЗЕРЫ",2]
[null,"Дата проведения:"]
[null,"Место проведения:"]
[]
["№","Предмет","ФИ ученика",null,"Класс","Набранный балл","Максимальный балл","Статус (Победитель, Призер, Участник)","ФИО педагога, подготовившего участника олимпиады"]
[1,"Литература","Асадуллин","Ильяс",6,30,30,"Победитель","Газизова Эльмира Ильгизовна",null,{"$f":"IF(H10=\"ПРИЗЁР\",1,0)","v":0},{"$f":"IF(H10=\"ПОБЕДИТЕЛЬ\",1,0)","v":1}]
[2,"Литература","Габдулнурова","Адиля",6,26,30,"Призёр","Газизова Эльмира Ильгизовна",null,{"$f":"IF(H11=\"ПРИЗЁР\",1,0)","v":1},{"$f":"IF(H11=\"ПОБЕДИТЕЛЬ\",1,0)","v":0}]
[3,"Литература","Гиниятова","Ильсина",6,25,30,"Призёр","Газизова Эльмира Ильгизовна",null,1,0]
[4,"Литература","Каримова","Дина",6,22,30,"Призёр","Газизова Эльмира Ильгизовна",null,1,0]
[5,"Литература","Шаймуллин","Данияр",6,30,30,"Победитель","Газизова Эльмира Ильгизовна",null,0,1]
[6,"Литература","Гайнутдинова ","Азалия ",7,45,45,"Победитель","Газизова Эльмира Ильгизовна",null,0,1]
[7,"Литература","Галимзянова ","Ясмин ",7,30,45,"Участник","Газизова Эльмира Ильгизовна",null,0,0]
[8,"Литература","Нуриева","Ралина",7,41,45,"Призёр","Газизова Эльмира Ильгизовна",null,1,0]
[9,"Литература","Шарафиева","Диана",7,43,45,"Призёр","Газизова Эльмира Ильгизовна",null,1,0]
[10,"Литература","Зубаерова ","Диля ",8,45,45,"Победитель","Газизова Эльмира Ильгизовна",null,0,1]
[11,"Литература","Хабибуллина ","Дания ",8,42,45,"Призёр","Газизова Эльмира Ильгизовна",null,1,0]
[12,"Литература","Хисамиева ","Камилла ",8,42,45,"Призёр","Газизова Эльмира Ильгизовна",null,1,0]
[13,"Литература","Ахметова ","Диляра ",9,21,35,"Участник","Газизова Эльмира Ильгизовна",null,0,0]
[14,"Литература","Максимова ","Эльвина ",9,35,35,"Победитель","Газизова Эльмира Ильгизовна",null,0,1]
[15,"Литература","Фаттахова ","Алина ",9,33,35,"Призёр","Газизова Эльмира Ильгизовна",null,1,0]
[16,"Литература","Хамдеева ","Диляра",9,35,35,"Победитель","Газизова Эльмира Ильгизовна",null,0,1]
[17,"Литература","Муртазин","Ислам",5,25,30,"Призёр","Муллагалеева Гузель Нургалиевна",null,{"$f":"IF(H26=\"ПРИЗЁР\",1,0)","v":1},{"$f":"IF(H26=\"ПОБЕДИТЕЛЬ\",1,0)","v":0}]
[18,"Литература","Мухаметшина","Инзиля",5,30,30,"Победитель","Муллагалеева Гузель Нургалиевна",null,{"$f":"IF(H27=\"ПРИЗЁР\",1,0)","v":0},{"$f":"IF(H27=\"ПОБЕДИТЕЛЬ\",1,0)","v":1}]
[19,"Литература","Валиуллина","Аделина",6,30,30,"Победитель","Муллагалеева Гузель Нургалиевна",null,{"$f":"IF(H28=\"ПРИЗЁР\",1,0)","v":0},{"$f":"IF(H28=\"ПОБЕДИТЕЛЬ\",1,0)","v":1}]
[20,"Литература","Хайрутдинова","Исламия",6,25,30,"Призёр","Муллагалеева Гузель Нургалиевна",null,{"$f":"IF(H29=\"ПРИЗЁР\",1,0)","v":1},{"$f":"IF(H29=\"ПОБЕДИТЕЛЬ\",1,0)","v":0}]
[21,"Литература","Шагисламова","Ляйля",6,26,30,"Призёр","Муллагалеева Гузель Нургалиевна",null,{"$f":"IF(H30=\"ПРИЗЁР\",1,0)","v":1},{"$f":"IF(H30=\"ПОБЕДИТЕЛЬ\",1,0)","v":0}]
[22,"Литература","Гатауллина","Аделя",6,25,30,"Призёр","Муллагалеева Гузель Нургалиевна",null,{"$f":"IF(H31=\"ПРИЗЁР\",1,0)","v":1},{"$f":"IF(H31=\"ПОБЕДИТЕЛЬ\",1,0)","v":0}]
[23,"Литература","Набиуллина ","Зиля",6,24,30,"Призёр","Муллагалеева Гузель Нургалиевна",null,{"$f":"IF(H32=\"ПРИЗЁР\",1,0)","v":1},{"$f":"IF(H32=\"ПОБЕДИТЕЛЬ\",1,0)","v":0}]
[24,"Литература","Фатыхова ","Камиля",6,20,30,"Участник","Муллагалеева Гузель Нургалиевна",null,{"$f":"IF(H33=\"ПРИЗЁР\",1,0)","v":0},{"$f":"IF(H33=\"ПОБЕДИТЕЛЬ\",1,0)","v":0}]
[25,"Литература","Мухаметзянова ","Раушания",7,45,45,"Победитель","Муллагалеева Гузель Нургалиевна",null,{"$f":"IF(H34=\"ПРИЗЁР\",1,0)","v":0},{"$f":"IF(H34=\"ПОБЕДИТЕЛЬ\",1,0)","v":1}]
[26,"Литература","Равилова","Адиля",7,43,45,"Призёр","Муллагалеева Гузель Нургалиевна",null,{"$f":"IF(H35=\"ПРИЗЁР\",1,0)","v":1},{"$f":"IF(H35=\"ПОБЕДИТЕЛЬ\",1,0)","v":0}]
[27,"Литература","Шарифуллина","Камиля",7,35,45,"Участник","Муллагалеева Гузель Нургалиевна",null,{"$f":"IF(H36=\"ПРИЗЁР\",1,0)","v":0},{"$f":"IF(H36=\"ПОБЕДИТЕЛЬ\",1,0)","v":0}]
[28,"Литература","Мухаметзянов","Расих",9,30,35,"Призёр","Муллагалеева Гузель Нургалиевна",null,{"$f":"IF(H37=\"ПРИЗЁР\",1,0)","v":1},{"$f":"IF(H37=\"ПОБЕДИТЕЛЬ\",1,0)","v":0}]
[29,"Литература","Сафаргалиева","Айсылу",9,35,35,"Победитель","Муллагалеева Гузель Нургалиевна"]
[30,"Литература","Закирзянов","Азамат",11,35,35,"Победитель","Муллагалеева Гузель Нургалиевна"]
[31,"Литература","Надыршина","Илюза",11,27,35,"Призёр","Муллагалеева Гузель Нургалиевна"]
[32,"Литература","Мухутдинова","Язиля",10,38,40,"Победитель","Юсупова Гульназ Фагаловна"]
[33,"Литература","Гараев ","Рамис",10,35,40,"     Призер","Юсупова Гульназ Фагаловна"]
[34,"Литература","Ахметова","Марьям",7,15,45,"Участник","Шаймуллина Миляуша Мидхатовна"]
[35,"Литература","Закирова","Диляра",7,32,45,"Призёр","Шаймуллина Миляуша Мидхатовна"]
[36,"Литература","Шафеева","Рузия",7,40,45,"Победитель","Шаймуллина Миляуша Мидхатовна"]

{"sheet":"История","index":12,"n_rows":42,"n_cols":12,"rows_kept":42,"merged":[[1,0,1,8],[8,2,8,3]]}
[]
["Предварительный протокол по итогам муниципального этапа ВсОШ/РОШ  \nМБОУ \"Арская СОШ №6\" в 2019-2020 учебном году"]
[]
[null,"Этап олимпиады:",{"$nulls":5},"ПОБЕДИТЕЛИ",5]
[null,"Класс:",{"$nulls":5},"ПРИЗЕРЫ",10]
[null,"Дата проведения:"]
[null,"Место проведения:"]
[]
["№","Предмет","ФИ ученика",null,"Класс","Набранный балл","Максимальный балл","Статус (Победитель, Призер, Участник)","ФИО педагога, подготовившего участника олимпиады"]
[1,"История","Гарифулиина ","Рафина ",5,67,100,"Призер","Сафарова Г.В.",null,{"$f":"IF(H10=\"ПРИЗЁР\",1,0)","v":0},{"$f":"IF(H10=\"ПОБЕДИТЕЛЬ\",1,0)","v":0}]
[2,"История","Гатауллина ","Аделя",6,50,100,"участник","Сафарова Г.В.",null,{"$f":"IF(H11=\"ПРИЗЁР\",1,0)","v":0},{"$f":"IF(H11=\"ПОБЕДИТЕЛЬ\",1,0)","v":0}]
[3,"История","Садыкова ","Инзиля",5,87,100,"победитель","Сафарова Г.В.",null,0,1]
[4,"История","Чугунов ","Данил",6,47,100,"участник","Сафарова Г.В.",null,0,0]
[5,"История","Мухаметзянова ","Раушания",7,47,100,"участник","Сафарова Г.В.",null,0,0]
[6,"История","Шафигуллин ","Нияз",9,36,100,"участник","Сафарова Г.В.",null,0,0]
[7,"История","Нигматзянова ","Камиля",9,45,100,"участник","Сафарова Г.В.",null,0,0]
[8,"История","Медведева ","Диана",10,47,100,"участник","Сафарова Г.В.",null,0,0]
[9,"История","Абдеев ","Салават",11,54,100,"призер","Сафарова Г.В.",null,0,0]
[10,"История","Ахмадиева ","Диляра",11,42,100,"участник","Сафарова Г.В.",null,0,0]
[11,"История","Ахметзянов ","Азамат",5,61,100,"призер","Сергиев Д.Ю.",null,0,0]
[12,"История","Файзиев","Расим",5,56,100,"участник","Сергиев Д.Ю.",null,0,0]
[13,"История","Валиуллин","Адель",5,53,100,"участник","Сергиев Д.Ю.",null,0,0]
[14,"История","Шакирзянов","Амирхан",5,48,100,"участник","Сергиев Д.Ю.",null,0,0]
[15,"История","Тазиева","Фирюза",6,72,100,"победитель","Сергиев Д.Ю.",null,0,1]
[16,"История","Валиуллина","Аделина",6,70,100,"призер","Сергиев Д.Ю.",null,0,0]
[17,"История","Медведкова ","Анна",6,65,100,"призер","Сергиев Д.Ю.",null,{"$f":"IF(H26=\"ПРИЗЁР\",1,0)","v":0},{"$f":"IF(H26=\"ПОБЕДИТЕЛЬ\",1,0)","v":0}]
[18,"История","Мусина ","Зиля",6,51,100,"участник","Сергиев Д.Ю.",null,{"$f":"IF(H27=\"ПРИЗЁР\",1,0)","v":0},{"$f":"IF(H27=\"ПОБЕДИТЕЛЬ\",1,0)","v":0}]
[19,"История","Гайнутдинова","Азалия",7,66,100,"победитель","Сергиев Д.Ю.",null,{"$f":"IF(H28=\"ПРИЗЁР\",1,0)","v":0},{"$f":"IF(H28=\"ПОБЕДИТЕЛЬ\",1,0)","v":1}]
[20,"История","Сабирова","Илюза",7,60,100,"призер","Сергиев Д.Ю.",null,{"$f":"IF(H29=\"ПРИЗЁР\",1,0)","v":0},{"$f":"IF(H29=\"ПОБЕДИТЕЛЬ\",1,0)","v":0}]
[21,"История","Зарипова ","Самира",7,55,100,"участник","Сергиев Д.Ю.",null,{"$f":"IF(H30=\"ПРИЗЁР\",1,0)","v":0},{"$f":"IF(H30=\"ПОБЕДИТЕЛЬ\",1,0)","v":0}]
[22,"История","Кутдусов ","Амирхан",7,45,100,"участник","Сергиев Д.Ю.",null,{"$f":"IF(H31=\"ПРИЗЁР\",1,0)","v":0},{"$f":"IF(H31=\"ПОБЕДИТЕЛЬ\",1,0)","v":0}]
[23,"История","Шакирова","Залина",7,40,100,"участник","Сергиев Д.Ю.",null,{"$f":"IF(H32=\"ПРИЗЁР\",1,0)","v":0},{"$f":"IF(H32=\"ПОБЕДИТЕЛЬ\",1,0)","v":0}]
[24,"История","Абдуллин","Амирхан",8,71,100,"победитель","Сергиев Д.Ю.",null,{"$f":"IF(H33=\"ПРИЗЁР\",1,0)","v":0},{"$f":"IF(H33=\"ПОБЕДИТЕЛЬ\",1,0)","v":1}]
[25,"История","Абдуллина","Лейсан",8,70,100,"призер","Сергиев Д.Ю.",null,{"$f":"IF(H34=\"ПРИЗЁР\",1,0)","v":0},{"$f":"IF(H34=\"ПОБЕДИТЕЛЬ\",1,0)","v":0}]
[26,"История","Сиразиев","Данил",8,65,100,"призер","Сергиев Д.Ю.",null,{"$f":"IF(H35=\"ПРИЗЁР\",1,0)","v":0},{"$f":"IF(H35=\"ПОБЕДИТЕЛЬ\",1,0)","v":0}]
[27,"История","Фазылов","Самат",8,55,100,"участник","Сергиев Д.Ю.",null,{"$f":"IF(H36=\"ПРИЗЁР\",1,0)","v":0},{"$f":"IF(H36=\"ПОБЕДИТЕЛЬ\",1,0)","v":0}]
[28,"История","Фазулзянов","Исмаил",8,51,100,"участник","Сергиев Д.Ю.",null,{"$f":"IF(H37=\"ПРИЗЁР\",1,0)","v":0},{"$f":"IF(H37=\"ПОБЕДИТЕЛЬ\",1,0)","v":0}]
[29,"История","Чигашова","Камиля",8,49,100,"участник","Сергиев Д.Ю."]
[30,"История","Гильмутдинов","Ильяс",8,20,100,"участник","Сергиев Д.Ю."]
[31,"История","Нуриев","Амирхан",9,70,100,"призер","Сергиев Д.Ю."]
[32,"История","Абайбуров","Ильдар",9,68,100,"призер","Сергиев Д.Ю."]
[33,"История","Мазитова ","Ильсия",9,78,100,"победитель","Сергиев Д.Ю."]

{"sheet":"Литература","index":13,"n_rows":49,"n_cols":12,"rows_kept":49,"merged":[[1,0,1,8],[8,2,8,3]]}
[]
["Предварительный протокол по итогам муниципального этапа ВсОШ/РОШ  \nМБОУ \"Арская СОШ №6\" в 2019-2020 учебном году"]
[]
[null,"Этап олимпиады:",{"$nulls":5},"ПОБЕДИТЕЛИ",6]
[null,"Класс:",{"$nulls":5},"ПРИЗЕРЫ",22]
[null,"Дата проведения:"]
[null,"Место проведения:"]
[]
["№","Предмет","ФИ ученика",null,"Класс","Набранный балл","Максимальный балл","Статус (Победитель, Призер, Участник)","ФИО педагога, подготовившего участника олимпиады"]
[1,"Литература","Садыйкова","Инзиля ",5,35,40,"Победитель","Загидуллина Гульшат Ринатовна",null,{"$f":"IF(H10=\"ПРИЗЁР\",1,0)","v":0},{"$f":"IF(H10=\"ПОБЕДИТЕЛЬ\",1,0)","v":1}]
[2,"Литература","Сабирзянова","Аделина",5,34,40,"Призёр","Загидуллина Гульшат Ринатовна",null,{"$f":"IF(H11=\"ПРИЗЁР\",1,0)","v":1},{"$f":"IF(H11=\"ПОБЕДИТЕЛЬ\",1,0)","v":0}]
[3,"Литература","Егорова ","Мария",5,33,40,"Призёр","Загидуллина Гульшат Ринатовна",null,1,0]
[4,"Литература","Мухаметшина ","Инзиля ",5,31,40,"Призёр","Зайнуллина Фильсина Габдулхаевна",null,1,0]
[5,"Литература","Гарифуллина","Рафина",5,31,40,"Призёр","Загидуллина Гульшат Ринатовна",null,1,0]
[6,"Литература","Исмагилов","Искандер",5,19,40,"Участник","Загидуллина Гульшат Ринатовна",null,0,0]
[7,"Литература","Мусина ","Зиля",6,40,40,"Победитель","Загидуллина Гульшат Ринатовна",null,0,1]
[8,"Литература","Осина","Виктория",6,38,40,"Призёр","Загидуллина Гульшат Ринатовна",null,1,0]
[9,"Литература","Медведкова","Анна",6,37,40,"Призёр","Загидуллина Гульшат Ринатовна",null,1,0]
[10,"Литература","Габдрахманова","Иделия",6,35,40,"Призёр","Загидуллина Гульшат Ринатовна",null,1,0]
[11,"Литература","Гатауллина","Аделя",6,33,40,"Призёр","Гаптелбарова Диляра Магсумовна",null,1,0]
[12,"Литература","Сайфуллина","Алия",6,31,40,"Призёр","Гаптелбарова Диляра Магсумовна",null,1,0]
[13,"Литература","Агзямова ","Алия",6,31,40,"Призёр","Загидуллина Гульшат Ринатовна",null,1,0]
[14,"Литература","Валиуллина","Аделина",6,20,40,"Участник","Загидуллина Гульшат Ринатовна",null,0,0]
[15,"Литература","Зайнакова","Юлдуз",6,19,40,"Участник","Гаптелбарова Диляра Магсумовна",null,0,0]
[16,"Литература","Мухаммадиева","Зарина",7,39,40,"Победитель","Загидуллина Гульшат Ринатовна",null,0,1]
[17,"Литература","Гайфутдинова","Алиса",7,38,40,"Призёр","Загидуллина Гульшат Ринатовна",null,{"$f":"IF(H26=\"ПРИЗЁР\",1,0)","v":1},{"$f":"IF(H26=\"ПОБЕДИТЕЛЬ\",1,0)","v":0}]
[18,"Литература","Алдосева","Кристина",7,37,40,"Призёр","Муратова Гульшат Булатовна",null,{"$f":"IF(H27=\"ПРИЗЁР\",1,0)","v":1},{"$f":"IF(H27=\"ПОБЕДИТЕЛЬ\",1,0)","v":0}]
[19,"Литература","Алмаева","Диана",7,37,40,"Призёр","Загидуллина Гульшат Ринатовна",null,{"$f":"IF(H28=\"ПРИЗЁР\",1,0)","v":1},{"$f":"IF(H28=\"ПОБЕДИТЕЛЬ\",1,0)","v":0}]
[20,"Литература","Мухаметзянова","Раушания",7,35,40,"Призёр","Зайнуллина Фильсина Габдулхаевна",null,{"$f":"IF(H29=\"ПРИЗЁР\",1,0)","v":1},{"$f":"IF(H29=\"ПОБЕДИТЕЛЬ\",1,0)","v":0}]
[21,"Литература","Гатауллина","Диляра",7,35,40,"Призёр","Загидуллина Гульшат Ринатовна",null,{"$f":"IF(H30=\"ПРИЗЁР\",1,0)","v":1},{"$f":"IF(H30=\"ПОБЕДИТЕЛЬ\",1,0)","v":0}]
[22,"Литература","Губарева","Полина",7,19,40,"Участник","Зайнуллина Фильсина Габдулхаевна",null,{"$f":"IF(H31=\"ПРИЗЁР\",1,0)","v":0},{"$f":"IF(H31=\"ПОБЕДИТЕЛЬ\",1,0)","v":0}]
[23,"Литература","Сафонова","Дарья",7,19,40,"Участник","Муратова Гульшат Булатовна",null,{"$f":"IF(H32=\"ПРИЗЁР\",1,0)","v":0},{"$f":"IF(H32=\"ПОБЕДИТЕЛЬ\",1,0)","v":0}]
[24,"Литература","Шафеева","Рузия",7,18,40,"Участник","Муратова Гульшат Булатовна",null,{"$f":"IF(H33=\"ПРИЗЁР\",1,0)","v":0},{"$f":"IF(H33=\"ПОБЕДИТЕЛЬ\",1,0)","v":0}]
[25,"Литература","Гайнутдинова","Азалия",7,18,40,"Участник","Загидуллина Гульшат Ринатовна",null,{"$f":"IF(H34=\"ПРИЗЁР\",1,0)","v":0},{"$f":"IF(H34=\"ПОБЕДИТЕЛЬ\",1,0)","v":0}]
[26,"Литература","Альтапова","Зарина",8,39,40,"Победитель","Гаптелбарова Диляра Магсумовна",null,{"$f":"IF(H35=\"ПРИЗЁР\",1,0)","v":0},{"$f":"IF(H35=\"ПОБЕДИТЕЛЬ\",1,0)","v":1}]
[27,"Литература","Закирова Л","Ляйля",8,38,40,"Призёр","Загидуллина Гульшат Ринатовна",null,{"$f":"IF(H36=\"ПРИЗЁР\",1,0)","v":1},{"$f":"IF(H36=\"ПОБЕДИТЕЛЬ\",1,0)","v":0}]
[28,"Литература","Абдуллин","Амир",8,35,40,"Призёр","Гаптелбарова Диляра Магсумовна",null,{"$f":"IF(H37=\"ПРИЗЁР\",1,0)","v":1},{"$f":"IF(H37=\"ПОБЕДИТЕЛЬ\",1,0)","v":0}]
[29,"Литература","Чигашова","Камиля",8,20,40,"Участник","Загидуллина Гульшат Ринатовна"]
[30,"Литература","Ахунова","Сафия",8,20,40,"Участник","Загидуллина Гульшат Ринатовна"]
[31,"Литература","Гарифзянов","Тимур",8,34,40,"призер","Гаптелбарова Диляра Магсумовна"]
[32,"Литература","Сафиуллина","Диляра",9,80,100,"Победитель","Гаптелбарова Диляра Магсумовна"]
[33,"Литература","Салаватова","Зиля",9,78,100,"Призёр","Муратова Гульшат Булатовна"]
[34,"Литература","Мазитова","Ильсия",9,76,100,"Призёр","Гаптелбарова Диляра Магсумовна"]
[35,"Литература","Сафаргалиева","Айсылу",9,50,100,"Участник","Зайнуллина Фильсина Габдулхаевна"]
[36,"Литература","Мифтахова","Азалия",9,45,100,"Участник","Гаптелбарова Диляра Магсумовна"]
[37,"Литература","Мухаметзянов","Расих",9,35,100,"Участник","Зайнуллина Фильсина Габдулхаевна"]
[38,"Литература","Мухутдинова ","Язиля",10,90,100,"Победитель","Загидуллина Гульшат Ринатовна"]
[39,"Литература","Гараева ","Залия",10,72,100,"Призёр","Загидуллина Гульшат Ринатовна"]
[40,"Литература","Салихзянова","Ляйсан",10,70,100,"Призёр","Загидуллина Гульшат Ринатовна"]

{"sheet":"ТАТ.ЯЗ.","index":14,"n_rows":59,"n_cols":12,"rows_kept":59,"merged":[[1,0,1,8],[8,2,8,3]]}
[]
["Предварительный протокол по итогам муниципального этапа ВсОШ/РОШ  \nМБОУ \"Арская СОШ №6\" в 2019-2020 учебном году"]
[]
[null,"Этап олимпиады:",{"$nulls":5},"ПОБЕДИТЕЛИ",{"$f":"SUM(L10:L67)","v":10}]
[null,"Класс:",{"$nulls":5},"ПРИЗЕРЫ",24]
[null,"Дата проведения:"]
[null,"Место проведения:"]
[]
["№","Предмет","ФИ ученика",null,"Класс","Набранный балл","Максимальный балл","Статус (Победитель, Призер, Участник)","ФИО педагога, подготовившего участника олимпиады"]
[1,"Татарский язык","Ралина","Ильдаровна",7,45,45,"победитель","Газизова Эльмира Ильгизовна",null,{"$f":"IF(H10=\"ПРИЗЁР\",1,0)","v":0},{"$f":"IF(H10=\"ПОБЕДИТЕЛЬ\",1,0)","v":1}]
[2,"Татарский язык","Диля ","Ильнаровна",8,47,47,"победитель","Газизова Эльмира Ильгизовна",null,{"$f":"IF(H11=\"ПРИЗЁР\",1,0)","v":0},{"$f":"IF(H11=\"ПОБЕДИТЕЛЬ\",1,0)","v":1}]
[3,"Татарский язык","Эльвина ","Руслановна",9,52,52,"победитель","Газизова Эльмира Ильгизовна",null,0,1]
[4,"Татарский язык","Инзиля","Фанисовна",5,35,36,"победитель","Муллагалеева Гузель Нургалиевна",null,{"$f":"IF(H13=\"ПРИЗЁР\",1,0)","v":0},{"$f":"IF(H13=\"ПОБЕДИТЕЛЬ\",1,0)","v":1}]
[5,"Татарский язык","Аделина","Ильнаровна",6,42,42,"победитель","Муллагалеева Гузель Нургалиевна",null,0,1]
[6,"Татарский язык","Раушания","Ниязовна",7,45,45,"победитель","Муллагалеева Гузель Нургалиевна",null,0,1]
[7,"Татарский язык","Азамат","Айдарович",11,52,52,"победитель","Муллагалеева Гузель Нургалиевна",null,0,1]
[8,"Татарский язык","Рафина","Радифовна",5,36,36,"победитель","Хуснутдинова Алсу Мухамматдиновна",null,0,1]
[9,"Татарский язык","Язиля","Фанилевна",10,50,52,"победитель","Юсупова Гульназ Фагаловна",null,0,1]
[10,"Татарский язык","Рузия","Рамилевна",7,40,45,"победитель","Шаймуллина Миляуша Мидхатовна",null,0,1]
[11,"Татарский язык","Ислам","Ильнурович",5,33,36,"призер","Муллагалеева Гузель Нургалиевна",null,0,0]
[12,"Татарский язык","Исламия","Марселевна",6,41,42,"призер","Муллагалеева Гузель Нургалиевна",null,0,0]
[13,"Татарский язык","Амина","Рамилевна",6,36,42,"призер","Муллагалеева Гузель Нургалиевна",null,0,0]
[14,"Татарский язык","Фирюза","Рустемовна",6,36,42,"призер","Муллагалеева Гузель Нургалиевна",null,0,0]
[15,"Татарский язык","Адиля","Айратовна",7,41,45,"призер","Муллагалеева Гузель Нургалиевна",null,0,0]
[16,"Татарский язык","Расих","Ниязович",9,48,52,"призер","Муллагалеева Гузель Нургалиевна",null,0,0]
[17,"Татарский язык","Инзиля","Ильфаровна",5,32,36,"призер","Хуснутдинова Алсу Мухамматдиновна",null,{"$f":"IF(H26=\"ПРИЗЁР\",1,0)","v":0},{"$f":"IF(H26=\"ПОБЕДИТЕЛЬ\",1,0)","v":0}]
[18,"Татарский язык","Абдулла","Ибрагимович",5,32,36,"призер","Юсупова Гульназ Фагаловна",null,{"$f":"IF(H27=\"ПРИЗЁР\",1,0)","v":0},{"$f":"IF(H27=\"ПОБЕДИТЕЛЬ\",1,0)","v":0}]
[19,"Татарский язык","Зарина","Булатовна",8,45,47,"призер","Юсупова Гульназ Фагаловна",null,{"$f":"IF(H28=\"ПРИЗЁР\",1,0)","v":0},{"$f":"IF(H28=\"ПОБЕДИТЕЛЬ\",1,0)","v":0}]
[20,"Татарский язык","Рамис","Радисович",10,49,52,"призер","Юсупова Гульназ Фагаловна",null,{"$f":"IF(H29=\"ПРИЗЁР\",1,0)","v":0},{"$f":"IF(H29=\"ПОБЕДИТЕЛЬ\",1,0)","v":0}]
[21,"Татарский язык","Раяз","Раилевич",4,26,36,"призер","Шаймуллина Миляуша Мидхатовна",null,{"$f":"IF(H30=\"ПРИЗЁР\",1,0)","v":0},{"$f":"IF(H30=\"ПОБЕДИТЕЛЬ\",1,0)","v":0}]
[22,"Татарский язык","Диляра","Айратовна",7,31,45,"призер","Шаймуллина Миляуша Мидхатовна",null,{"$f":"IF(H31=\"ПРИЗЁР\",1,0)","v":0},{"$f":"IF(H31=\"ПОБЕДИТЕЛЬ\",1,0)","v":0}]
[23,"Татарский язык","Ильяс","Раилевич",4,28,36,"призер","Исмагилова Разина Дамировна",null,{"$f":"IF(H32=\"ПРИЗЁР\",1,0)","v":0},{"$f":"IF(H32=\"ПОБЕДИТЕЛЬ\",1,0)","v":0}]
[24,"Татарский язык","Ильяс","Раушанович",6,40,42,"призёр","Газизова Эльмира Ильгизовна",null,{"$f":"IF(H33=\"ПРИЗЁР\",1,0)","v":1},{"$f":"IF(H33=\"ПОБЕДИТЕЛЬ\",1,0)","v":0}]
[25,"Татарский язык","Данияр","Динарович",6,40,42,"призёр","Газизова Эльмира Ильгизовна",null,{"$f":"IF(H34=\"ПРИЗЁР\",1,0)","v":1},{"$f":"IF(H34=\"ПОБЕДИТЕЛЬ\",1,0)","v":0}]
[26,"Татарский язык","Азалия ","Алмасовна",7,37,45,"призёр","Газизова Эльмира Ильгизовна",null,{"$f":"IF(H35=\"ПРИЗЁР\",1,0)","v":1},{"$f":"IF(H35=\"ПОБЕДИТЕЛЬ\",1,0)","v":0}]
[27,"Татарский язык","Алиса ","Фанисовна",7,44,45,"призёр","Газизова Эльмира Ильгизовна",null,{"$f":"IF(H36=\"ПРИЗЁР\",1,0)","v":1},{"$f":"IF(H36=\"ПОБЕДИТЕЛЬ\",1,0)","v":0}]
[28,"Татарский язык","Ислам ","Фанисович",7,43,45,"призёр","Газизова Эльмира Ильгизовна",null,{"$f":"IF(H37=\"ПРИЗЁР\",1,0)","v":1},{"$f":"IF(H37=\"ПОБЕДИТЕЛЬ\",1,0)","v":0}]
[29,"Татарский язык","Рузина ","Радиковна",8,45,47,"призёр","Газизова Эльмира Ильгизовна"]
[30,"Татарский язык","Камила ","Ильнуровна",8,46,47,"призёр","Газизова Эльмира Ильгизовна"]
[31,"Татарский язык","Эльвина"," Романовна",8,44,47,"призёр","Газизова Эльмира Ильгизовна"]
[32,"Татарский язык","Диляра ","Марселевна",9,51,52,"призёр","Газизова Эльмира Ильгизовна"]
[33,"Татарский язык","Алина ","Халилевна",9,51,52,"призёр","Газизова Эльмира Ильгизовна"]
[34,"Татарский язык","Диляра"," Ильхамовна",9,51,52,"призёр","Газизова Эльмира Ильгизовна"]
[35,"Татарский язык","Адиля","Зульфатовна",6,31,42,"участник","Газизова Эльмира Ильгизовна"]
[36,"Татарский язык","Ильсина","Айдаровна",6,31,42,"участник","Газизова Эльмира Ильгизовна"]
[37,"Татарский язык","Динара","Робертовна",6,35,42,"участник","Муллагалеева Гузель Нургалиевна"]
[38,"Татарский язык","Аделя","Рустемовна",6,35,42,"участник","Муллагалеева Гузель Нургалиевна"]
[39,"Татарский язык","Камиля","Рафилевна",7,38,45,"участник","Муллагалеева Гузель Нургалиевна"]
[40,"Татарский язык","Адель","Ильнарович",5,30,36,"участник","Юсупова Гульназ Фагаловна"]
[41,"Татарский язык","Раяз","Динарович",5,29,36,"участник","Юсупова Гульназ Фагаловна"]
[42,"Татарский язык","Идиллия","Руслановна",5,27,36,"участник","Юсупова Гульназ Фагаловна"]
[43,"Татарский язык","Азамат","Айратович",5,27,36,"участник","Юсупова Гульназ Фагаловна"]
[44,"Татарский язык","Булат","Ринатович",10,45,52,"участник","Юсупова Гульназ Фагаловна"]
[45,"Татарский язык","Рустем","Алмазович",10,43,52,"участник","Юсупова Гульназ Фагаловна"]
[46,"Татарский язык","Сюмбель","Ильшатовна",4,16,36,"участник","Шаймуллина Миляуша Мидхатовна"]
[47,"Татарский язык","Сулейман","Альфатович",4,13,36,"участник","Шаймуллина Миляуша Мидхатовна"]
[48,"Татарский язык","Марьям ","Айратовна",7,23,45,"участник","Шаймуллина Миляуша Мидхатовна"]
[49,"Татарский язык","Нияз","Азатович",4,15,36,"Участник","Исмагилова Разина Дамировна"]
[50,"Татарский язык","Гузель","Рифкатовна",4,20,36,"участник","Исмагилова Разина Дамировна"]

{"sheet":"АНГ.ЯЗ.","index":15,"n_rows":25,"n_cols":12,"rows_kept":25,"merged":[[1,0,1,8],[8,2,8,3],[28,4,28,5]]}
[]
["Предварительный протокол по итогам муниципального этапа ВсОШ/РОШ  \nМБОУ \"Арская СОШ №6\" в 2019-2020 учебном году"]
[]
[null,"Этап олимпиады:",null,"Муниципальный",null,{"$f":"SUM(H11)","v":0},null,"ПОБЕДИТЕЛИ",{"$f":"SUM(L10:L67)","v":7}]
[null,"Класс:",{"$nulls":5},"ПРИЗЕРЫ",{"$f":"SUM(K13:L267)","v":4}]
[null,"Дата проведения:"]
[null,"Место проведения:"]
[]
["№","Предмет","ФИ ученика",null,"Класс","Набранный балл","Максимальный балл","Статус (Победитель, Призер, Участник)","ФИО педагога, подготовившего участника олимпиады"]
[1,"Английский язык","Эвелина","Гильфанова ",4,43,45,"победитель","Сабирова Гульнар Ахкамовна",null,{"$f":"IF(H10=\"ПРИЗЁР\",1,0)","v":0},{"$f":"IF(H10=\"ПОБЕДИТЕЛЬ\",1,0)","v":1}]
[2,"Английский язык","Амир","Сибгатуллин ",5,52,53,"победитель","Сабирова Гульнар Ахкамовна",null,{"$f":"IF(H11=\"ПРИЗЁР\",1,0)","v":0},{"$f":"IF(H11=\"ПОБЕДИТЕЛЬ\",1,0)","v":1}]
[3,"Английский язык","Самира","Кашафутдинова",6,52,53,"победитель","Хабибуллина Алсу Рамиловна",null,0,1]
[4,"Английский язык","Рузия","Шафеева ",7,68,70,"победитель","Зигангирова Лилия Ильясовна",null,0,1]
[5,"Английский язык","Артур","Ахмадиев",8,67,70,"победитель","Хайруллина Миляуша Наиловна",null,0,1]
[6,"Английский язык","Ильдар","Абайбуров",9,86,90,"победитель","Хайруллина Миляуша Наиловна",null,0,1]
[7,"Английский язык","Альбина","Хафизова",11,88,90,"победитель","Кабирова Лейсан Ильясовна",null,0,1]
[8,"Английский язык","Зарина","Закирова",4,33,45,"призер","Сабирова Гульнар Ахкамовна",null,0,0]
[9,"Английский язык","Инзиля","Садыйкова ",5,45,53,"призер","Гиззатова Эндже Рашитовна"]
[10,"Английский язык","Алия","Агзямова",6,44,53,"призер","Хабибуллина Алсу Рамиловна"]
[11,"Английский язык","Амина","Юнусова",7,61,70,"призер","Гиззатова Эндже Рашитовна"]
[12,"Английский язык","Эндже","Гатауллина",4,18,45,"участник","Хайруллина Миляуша Наиловна"]
[13,"Английский язык","Раяз","Шакирзянов ",4,14,45,"участник","Хабибуллина Алсу Рамиловна"]
[14,"Английский язык","Раяз","Магсумов ",4,10,45,"участник","Гиззатова Эндже Рашитовна"]
[15,"Английский язык","Мария","Егорова ",5,28,53,"участник","Хайруллина Миляуша Наиловна"]
[16,"Английский язык","Аделя","Гатауллина",6,21,53,"участник","Гиззатова Эндже Рашитовна"]